[Event "Titled Tuesday Blitz February 28 Late 2023"]
[White "Bortnyk, Mykola"]
[Black "Indjic, Aleksandar"]
[WhiteFideId "14120836"]
[BlackFideId "911925"]
[WhiteElo "2582"]
[BlackElo "2625"]
[Result "0-1"]
[Round "08"]
[TimeControl "180+2"]
[Date "2023.02.28"]
[WhiteClock "0:00:46"]
[BlackClock "0:00:51"]

1. e4 {[%clk 0:03:00]}  e5 {[%clk 0:03:00]} 2. Nf3 {[%clk 0:03:00]}  Nf6 {[%clk 0:03:00]} 3. Nxe5 {[%clk 0:03:00]}  d6 {[%clk 0:03:01]} 4. Nf3 {[%clk 0:03:01]}  Nxe4 {[%clk 0:03:01]} 5. Bd3 {[%clk 0:03:01]}  Nf6 {[%clk 0:03:01]} 6. O-O {[%clk 0:03:01]}  Be7 {[%clk 0:03:01]} 7. c3 {[%clk 0:03:02]}  O-O {[%clk 0:03:02]} 8. Bc2 {[%clk 0:03:03]}  b6 {[%clk 0:03:02]} 9. d4 {[%clk 0:03:03]}  Bb7 {[%clk 0:03:03]} 10. Re1 {[%clk 0:03:02]}  Nbd7 {[%clk 0:03:03]} 11. Nbd2 {[%clk 0:03:02]}  Re8 {[%clk 0:03:03]} 12. Nf1 {[%clk 0:03:02]}  Bf8 {[%clk 0:03:04]} 13. Ne3 {[%clk 0:02:59]}  g6 {[%clk 0:03:04]} 14. a4 {[%clk 0:02:56]}  a6 {[%clk 0:03:03]} 15. h3 {[%clk 0:02:54]}  Bg7 {[%clk 0:03:00]} 16. Bb3 {[%clk 0:02:53]}  h6 {[%clk 0:02:55]} 17. a5 {[%clk 0:02:44]}  b5 {[%clk 0:02:55]} 18. d5 {[%clk 0:02:40]}  Nc5 {[%clk 0:02:51]} 19. Ba2 {[%clk 0:02:40]}  Qd7 {[%clk 0:02:45]} 20. Nd4 {[%clk 0:02:33]}  Re7 {[%clk 0:02:44]} 21. c4 {[%clk 0:02:19]}  Rae8 {[%clk 0:02:38]} 22. cxb5 {[%clk 0:02:18]}  axb5 {[%clk 0:02:38]} 23. Rf1 {[%clk 0:02:16]}  Nfe4 {[%clk 0:02:30]} 24. Rb1 {[%clk 0:01:51]}  Kh7 {[%clk 0:02:17]} 25. Ndc2 {[%clk 0:01:43]}  Ra8 {[%clk 0:02:05]} 26. Bd2 {[%clk 0:01:41]}  Nd3 {[%clk 0:01:49]} 27. b4 {[%clk 0:01:35]}  Rae8 {[%clk 0:01:48]} 28. Rb3 {[%clk 0:01:33]}  Nf4 {[%clk 0:01:45]} 29. Bc1 {[%clk 0:01:27]}  f5 {[%clk 0:01:37]} 30. Ra3 {[%clk 0:01:23]}  Nc3 {[%clk 0:01:35]} 31. Qf3 {[%clk 0:01:18]}  Nfe2+ {[%clk 0:01:33]} 32. Kh1 {[%clk 0:01:17]}  f4 {[%clk 0:01:29]} 33. Ng4 {[%clk 0:01:12]}  Nxc1 {[%clk 0:01:27]} 34. Rxc1 {[%clk 0:01:11]}  Nxa2 {[%clk 0:01:26]} 35. Rxa2 {[%clk 0:01:10]}  Qf5 {[%clk 0:01:26]} 36. Rd1 {[%clk 0:01:07]}  Re2 {[%clk 0:01:25]} 37. Nd4 {[%clk 0:01:06]}  Re1+ {[%clk 0:01:19]} 38. Rxe1 {[%clk 0:00:56]}  Rxe1+ {[%clk 0:01:20]} 39. Kh2 {[%clk 0:00:57]}  Bxd4 {[%clk 0:01:19]} 40. Re2 {[%clk 0:00:46]}  Bxd5 {[%clk 0:01:08]} 41. Qxd5 {[%clk 0:00:46]}  Qxd5 {[%clk 0:01:07]} 42. Rxe1 {[%clk 0:00:46]}  h5 {[%clk 0:00:55]} 43. Re7+ {[%clk 0:00:46]}  Kg8 {[%clk 0:00:54]} 44. Nh6+ {[%clk 0:00:46]}  Kf8 {[%clk 0:00:54]} 45. Rxc7 {[%clk 0:00:47]}  Bxf2 {[%clk 0:00:50]} 46. Rf7+ {[%clk 0:00:45]}  Qxf7 {[%clk 0:00:50]} 47. Nxf7 {[%clk 0:00:46]}  Kxf7 {[%clk 0:00:51]} 0-1


[Site "https://www.chess.com"]

[Event "Titled Tuesday Blitz February 28 Late 2023"]
[White "Yu, Yangyi"]
[Black "Keymer, Vincent"]
[WhiteFideId "8603820"]
[BlackFideId "12940690"]
[WhiteElo "2783"]
[BlackElo "2651"]
[Result "1-0"]
[Round "08"]
[TimeControl "180+2"]
[Date "2023.02.28"]
[WhiteClock "0:01:31"]
[BlackClock "0:01:23"]

1. Nf3 {[%clk 0:03:00]}  d5 {[%clk 0:03:00]} 2. g3 {[%clk 0:03:01]}  Bg4 {[%clk 0:02:59]} 3. Bg2 {[%clk 0:03:01]}  c6 {[%clk 0:03:00]} 4. O-O {[%clk 0:03:00]}  Nd7 {[%clk 0:03:00]} 5. h3 {[%clk 0:03:01]}  Bh5 {[%clk 0:03:00]} 6. d4 {[%clk 0:02:58]}  Ngf6 {[%clk 0:03:00]} 7. c4 {[%clk 0:02:58]}  e6 {[%clk 0:03:00]} 8. cxd5 {[%clk 0:02:56]}  exd5 {[%clk 0:03:01]} 9. Ne5 {[%clk 0:02:56]}  Ne4 {[%clk 0:02:59]} 10. Nd2 {[%clk 0:02:56]}  f5 {[%clk 0:02:57]} 11. Bf3 {[%clk 0:02:39]}  Bg6 {[%clk 0:02:52]} 12. Nxg6 {[%clk 0:02:31]}  hxg6 {[%clk 0:02:51]} 13. Bg2 {[%clk 0:02:28]}  Bd6 {[%clk 0:02:50]} 14. Nxe4 {[%clk 0:02:22]}  fxe4 {[%clk 0:02:48]} 15. h4 {[%clk 0:02:15]}  Qb6 {[%clk 0:02:21]} 16. Bg5 {[%clk 0:02:09]}  Nf8 {[%clk 0:02:09]} 17. e3 {[%clk 0:02:06]}  Qc7 {[%clk 0:02:01]} 18. Bh3 {[%clk 0:02:02]}  Nh7 {[%clk 0:01:56]} 19. Qg4 {[%clk 0:01:55]}  Qf7 {[%clk 0:01:45]} 20. f3 {[%clk 0:01:40]}  Nxg5 {[%clk 0:01:44]} 21. hxg5 {[%clk 0:01:39]}  Qe7 {[%clk 0:01:23]} 22. fxe4 {[%clk 0:01:34]}  Qxe4 {[%clk 0:01:23]} 23. Qd7# {[%clk 0:01:31]} 1-0


[Site "https://www.chess.com"]

[Event "Titled Tuesday Blitz February 28 Late 2023"]
[White "Duda, Jan-Krzysztof"]
[Black "Chigaev, Maksim"]
[WhiteFideId "1170546"]
[BlackFideId "4108116"]
[WhiteElo "2790"]
[BlackElo "2547"]
[Result "1-0"]
[Round "08"]
[TimeControl "180+2"]
[Date "2023.02.28"]
[WhiteClock "0:00:02"]
[BlackClock "0:00:04"]

1. e4 {[%clk 0:03:00]}  c5 {[%clk 0:02:59]} 2. Nf3 {[%clk 0:03:01]}  e6 {[%clk 0:03:00]} 3. d4 {[%clk 0:03:00]}  cxd4 {[%clk 0:03:01]} 4. Nxd4 {[%clk 0:03:00]}  Nf6 {[%clk 0:03:01]} 5. Nc3 {[%clk 0:03:00]}  Nc6 {[%clk 0:03:02]} 6. Nxc6 {[%clk 0:02:58]}  bxc6 {[%clk 0:03:03]} 7. e5 {[%clk 0:02:58]}  Nd5 {[%clk 0:03:03]} 8. Ne4 {[%clk 0:02:59]}  Bb7 {[%clk 0:03:04]} 9. c4 {[%clk 0:02:50]}  Nb4 {[%clk 0:03:04]} 10. c5 {[%clk 0:02:40]}  Qb8 {[%clk 0:03:03]} 11. f4 {[%clk 0:02:38]}  Ba6 {[%clk 0:03:04]} 12. Be2 {[%clk 0:02:19]}  Bxe2 {[%clk 0:02:58]} 13. Qxe2 {[%clk 0:02:20]}  Qb5 {[%clk 0:02:58]} 14. Be3 {[%clk 0:02:07]}  Nd3+ {[%clk 0:02:24]} 15. Kf1 {[%clk 0:02:07]}  Rb8 {[%clk 0:01:33]} 16. a4 {[%clk 0:01:58]}  Qxb2 {[%clk 0:01:24]} 17. Rd1 {[%clk 0:01:54]}  Qxe2+ {[%clk 0:01:14]} 18. Kxe2 {[%clk 0:01:55]}  Nb4 {[%clk 0:01:13]} 19. Rb1 {[%clk 0:01:50]}  Be7 {[%clk 0:01:05]} 20. Bd2 {[%clk 0:01:19]}  a5 {[%clk 0:01:05]} 21. Rhd1 {[%clk 0:01:13]}  f5 {[%clk 0:01:01]} 22. exf6 {[%clk 0:01:12]}  gxf6 {[%clk 0:01:01]} 23. Bc3 {[%clk 0:01:11]}  Rf8 {[%clk 0:00:53]} 24. Rd4 {[%clk 0:00:42]}  f5 {[%clk 0:00:47]} 25. Nd6+ {[%clk 0:00:35]}  Bxd6 {[%clk 0:00:46]} 26. Rxd6 {[%clk 0:00:29]}  Ke7 {[%clk 0:00:42]} 27. Be5 {[%clk 0:00:30]}  Na6 {[%clk 0:00:27]} 28. Rbd1 {[%clk 0:00:20]}  Rb7 {[%clk 0:00:19]} 29. R6d3 {[%clk 0:00:20]}  Rg8 {[%clk 0:00:14]} 30. Rh3 {[%clk 0:00:20]}  Ke8 {[%clk 0:00:06]} 31. Bd4 {[%clk 0:00:05]}  Nb4 {[%clk 0:00:05]} 32. g3 {[%clk 0:00:03]}  Nd5 {[%clk 0:00:03]} 33. Rxh7 {[%clk 0:00:04]}  Rb4 {[%clk 0:00:03]} 34. Be5 {[%clk 0:00:03]}  Rxa4 {[%clk 0:00:04]} 35. Rb1 {[%clk 0:00:04]}  Rb4 {[%clk 0:00:04]} 36. Rxb4 {[%clk 0:00:04]}  axb4 {[%clk 0:00:05]} 37. Kd3 {[%clk 0:00:05]}  Kd8 {[%clk 0:00:05]} 38. Kc4 {[%clk 0:00:05]}  Kc8 {[%clk 0:00:06]} 39. Kb3 {[%clk 0:00:06]}  Rd8 {[%clk 0:00:06]} 40. h4 {[%clk 0:00:05]}  Rg8 {[%clk 0:00:05]} 41. Rg7 {[%clk 0:00:05]}  Re8 {[%clk 0:00:03]} 42. h5 {[%clk 0:00:05]}  Kb7 {[%clk 0:00:03]} 43. Rxd7+ {[%clk 0:00:04]}  Ka6 {[%clk 0:00:04]} 44. Kc4 {[%clk 0:00:04]}  Rg8 {[%clk 0:00:03]} 45. Rg7 {[%clk 0:00:02]}  Rd8 {[%clk 0:00:03]} 46. h6 {[%clk 0:00:02]}  Ne3+ {[%clk 0:00:03]} 47. Kxb4 {[%clk 0:00:02]}  Rd3 {[%clk 0:00:03]} 48. h7 {[%clk 0:00:02]}  Nd5+ {[%clk 0:00:04]} 49. Kc4 {[%clk 0:00:02]}  Rxg3 {[%clk 0:00:04]} 50. Rxg3 {[%clk 0:00:02]} 1-0


[Site "https://www.chess.com"]

[Event "Titled Tuesday Blitz February 28 Late 2023"]
[White "Baskakov, Egor"]
[Black "Kramnik, Vladimir"]
[WhiteFideId "24197866"]
[BlackFideId "4101588"]
[WhiteElo "2212"]
[BlackElo "2712"]
[Result "1-0"]
[Round "08"]
[TimeControl "180+2"]
[Date "2023.02.28"]
[WhiteClock "0:00:11"]
[BlackClock "0:00:01"]

1. e4 {[%clk 0:03:00]}  e5 {[%clk 0:02:59]} 2. Nc3 {[%clk 0:03:00]}  Nf6 {[%clk 0:02:58]} 3. g3 {[%clk 0:03:00]}  d5 {[%clk 0:02:55]} 4. exd5 {[%clk 0:03:01]}  Nxd5 {[%clk 0:02:55]} 5. Bg2 {[%clk 0:03:01]}  Nf6 {[%clk 0:02:55]} 6. Nge2 {[%clk 0:03:01]}  Bc5 {[%clk 0:02:53]} 7. O-O {[%clk 0:03:00]}  O-O {[%clk 0:02:53]} 8. h3 {[%clk 0:03:01]}  Re8 {[%clk 0:02:51]} 9. d3 {[%clk 0:03:01]}  Nc6 {[%clk 0:02:48]} 10. Kh2 {[%clk 0:02:59]}  Bf5 {[%clk 0:02:32]} 11. Be3 {[%clk 0:02:47]}  Bb6 {[%clk 0:02:28]} 12. Qd2 {[%clk 0:02:40]}  h6 {[%clk 0:02:24]} 13. Rad1 {[%clk 0:02:38]}  Qd7 {[%clk 0:02:17]} 14. Bxb6 {[%clk 0:01:43]}  axb6 {[%clk 0:02:16]} 15. f4 {[%clk 0:01:44]}  e4 {[%clk 0:02:08]} 16. dxe4 {[%clk 0:01:41]}  Qxd2 {[%clk 0:02:07]} 17. Rxd2 {[%clk 0:01:42]}  Nxe4 {[%clk 0:02:04]} 18. Nxe4 {[%clk 0:01:42]}  Bxe4 {[%clk 0:02:04]} 19. Bxe4 {[%clk 0:01:42]}  Rxe4 {[%clk 0:02:04]} 20. a3 {[%clk 0:01:39]}  Rc4 {[%clk 0:01:37]} 21. Nc3 {[%clk 0:01:31]}  Nd4 {[%clk 0:01:32]} 22. Kg2 {[%clk 0:01:24]}  Re8 {[%clk 0:01:31]} 23. Rff2 {[%clk 0:01:16]}  h5 {[%clk 0:01:29]} 24. f5 {[%clk 0:01:08]}  Re5 {[%clk 0:01:05]} 25. g4 {[%clk 0:00:54]}  hxg4 {[%clk 0:01:00]} 26. hxg4 {[%clk 0:00:55]}  f6 {[%clk 0:00:52]} 27. Rf4 {[%clk 0:00:46]}  c5 {[%clk 0:00:50]} 28. Kg3 {[%clk 0:00:28]}  Kf7 {[%clk 0:00:44]} 29. Nb5 {[%clk 0:00:16]}  Rxc2 {[%clk 0:00:10]} 30. Rfxd4 {[%clk 0:00:16]}  cxd4 {[%clk 0:00:10]} 31. Rxc2 {[%clk 0:00:16]}  Rxb5 {[%clk 0:00:09]} 32. b4 {[%clk 0:00:17]}  Rd5 {[%clk 0:00:07]} 33. Kf4 {[%clk 0:00:15]}  d3 {[%clk 0:00:06]} 34. Rd2 {[%clk 0:00:15]}  Rd4+ {[%clk 0:00:06]} 35. Ke3 {[%clk 0:00:08]}  Rxg4 {[%clk 0:00:06]} 36. Kxd3 {[%clk 0:00:09]}  Rf4 {[%clk 0:00:06]} 37. Rc2 {[%clk 0:00:09]}  Rxf5 {[%clk 0:00:05]} 38. Rc7+ {[%clk 0:00:09]}  Kg6 {[%clk 0:00:05]} 39. Rxb7 {[%clk 0:00:10]}  b5 {[%clk 0:00:06]} 40. a4 {[%clk 0:00:10]}  bxa4 {[%clk 0:00:05]} 41. b5 {[%clk 0:00:10]}  a3 {[%clk 0:00:04]} 42. Kc4 {[%clk 0:00:11]}  Rf2 {[%clk 0:00:02]} 43. Ra7 {[%clk 0:00:11]}  Rc2+ {[%clk 0:00:01]} 44. Kb3 {[%clk 0:00:09]}  Rb2+ {[%clk 0:00:01]} 45. Kc4 {[%clk 0:00:10]}  a2 {[%clk 0:00:01]} 46. Kc5 {[%clk 0:00:11]} 1-0


[Site "https://www.chess.com"]

[Event "Titled Tuesday Blitz February 28 Late 2023"]
[White "Mendonca, Leon Luke"]
[Black "Svane, Rasmus"]
[WhiteFideId "35028561"]
[BlackFideId "4657101"]
[WhiteElo "2464"]
[BlackElo "2597"]
[Result "1/2-1/2"]
[Round "08"]
[TimeControl "180+2"]
[Date "2023.02.28"]
[WhiteClock "0:00:29"]
[BlackClock "0:00:23"]

1. c4 {[%clk 0:03:00]}  e6 {[%clk 0:02:58]} 2. g3 {[%clk 0:02:58]}  d5 {[%clk 0:02:59]} 3. Bg2 {[%clk 0:02:59]}  Nf6 {[%clk 0:02:56]} 4. Nf3 {[%clk 0:02:59]}  Be7 {[%clk 0:02:55]} 5. O-O {[%clk 0:02:59]}  O-O {[%clk 0:02:56]} 6. b3 {[%clk 0:02:59]}  d4 {[%clk 0:02:54]} 7. e3 {[%clk 0:02:58]}  c5 {[%clk 0:02:55]} 8. exd4 {[%clk 0:02:58]}  cxd4 {[%clk 0:02:56]} 9. Re1 {[%clk 0:02:59]}  Nc6 {[%clk 0:02:56]} 10. Ne5 {[%clk 0:02:58]}  Nxe5 {[%clk 0:02:54]} 11. Rxe5 {[%clk 0:02:59]}  Bd6 {[%clk 0:02:45]} 12. Re1 {[%clk 0:02:57]}  e5 {[%clk 0:02:45]} 13. d3 {[%clk 0:02:56]}  Re8 {[%clk 0:02:43]} 14. Ba3 {[%clk 0:02:55]}  Rb8 {[%clk 0:02:38]} 15. Bxd6 {[%clk 0:02:46]}  Qxd6 {[%clk 0:02:39]} 16. Qc2 {[%clk 0:02:47]}  Bf5 {[%clk 0:02:36]} 17. Nd2 {[%clk 0:02:47]}  Nd7 {[%clk 0:02:35]} 18. a3 {[%clk 0:02:46]}  a5 {[%clk 0:02:35]} 19. Ne4 {[%clk 0:02:45]}  Qe7 {[%clk 0:02:34]} 20. Qd2 {[%clk 0:02:41]}  Bxe4 {[%clk 0:02:29]} 21. Bxe4 {[%clk 0:02:39]}  Nc5 {[%clk 0:02:29]} 22. Qc2 {[%clk 0:02:12]}  Nxe4 {[%clk 0:02:26]} 23. Rxe4 {[%clk 0:02:05]}  f5 {[%clk 0:02:26]} 24. Re2 {[%clk 0:02:06]}  Qd6 {[%clk 0:02:26]} 25. c5 {[%clk 0:02:05]}  Qd5 {[%clk 0:02:25]} 26. Rae1 {[%clk 0:02:02]}  Rbc8 {[%clk 0:02:09]} 27. b4 {[%clk 0:02:01]}  axb4 {[%clk 0:02:10]} 28. axb4 {[%clk 0:02:02]}  b6 {[%clk 0:02:10]} 29. f4 {[%clk 0:01:56]}  e4 {[%clk 0:01:48]} 30. dxe4 {[%clk 0:01:57]}  fxe4 {[%clk 0:01:43]} 31. Rxe4 {[%clk 0:01:57]}  Rxe4 {[%clk 0:01:41]} 32. Qxe4 {[%clk 0:01:56]}  Qxe4 {[%clk 0:01:39]} 33. Rxe4 {[%clk 0:01:57]}  bxc5 {[%clk 0:01:39]} 34. bxc5 {[%clk 0:01:57]}  Rxc5 {[%clk 0:01:40]} 35. Rxd4 {[%clk 0:01:57]}  Rc2 {[%clk 0:01:41]} 36. Rd1 {[%clk 0:01:54]}  Kf7 {[%clk 0:01:41]} 37. Rf1 {[%clk 0:01:54]}  Kf6 {[%clk 0:01:42]} 38. Rf2 {[%clk 0:01:55]}  Rc3 {[%clk 0:01:42]} 39. Kg2 {[%clk 0:01:55]}  h6 {[%clk 0:01:35]} 40. Re2 {[%clk 0:01:55]}  Rb3 {[%clk 0:01:35]} 41. Kf2 {[%clk 0:01:55]}  Rc3 {[%clk 0:01:35]} 42. Ra2 {[%clk 0:01:53]}  Rb3 {[%clk 0:01:35]} 43. Ra6+ {[%clk 0:01:52]}  Kf7 {[%clk 0:01:35]} 44. Ra2 {[%clk 0:01:49]}  Rc3 {[%clk 0:01:35]} 45. Re2 {[%clk 0:01:49]}  Rb3 {[%clk 0:01:35]} 46. h3 {[%clk 0:01:48]}  Rc3 {[%clk 0:01:34]} 47. Re3 {[%clk 0:01:48]}  Rc4 {[%clk 0:01:28]} 48. Kf3 {[%clk 0:01:49]}  Kf6 {[%clk 0:01:29]} 49. Ra3 {[%clk 0:01:47]}  Rc6 {[%clk 0:01:26]} 50. Ra7 {[%clk 0:01:39]}  Kg6 {[%clk 0:01:25]} 51. Kg4 {[%clk 0:01:37]}  Rb6 {[%clk 0:01:25]} 52. Ra5 {[%clk 0:01:24]}  Rc6 {[%clk 0:01:24]} 53. h4 {[%clk 0:01:18]}  Rb6 {[%clk 0:01:24]} 54. f5+ {[%clk 0:01:16]}  Kf6 {[%clk 0:01:20]} 55. Kh5 {[%clk 0:01:16]}  Kf7 {[%clk 0:01:04]} 56. g4 {[%clk 0:01:14]}  Kg8 {[%clk 0:00:48]} 57. Ra7 {[%clk 0:01:07]}  Rb5 {[%clk 0:00:36]} 58. Re7 {[%clk 0:00:58]}  Kh7 {[%clk 0:00:33]} 59. Rf7 {[%clk 0:00:51]}  Rc5 {[%clk 0:00:29]} 60. Rd7 {[%clk 0:00:45]}  Rb5 {[%clk 0:00:29]} 61. Rf7 {[%clk 0:00:31]}  Rc5 {[%clk 0:00:28]} 62. g5 {[%clk 0:00:32]}  Rxf5 {[%clk 0:00:20]} 63. Rxf5 {[%clk 0:00:26]}  g6+ {[%clk 0:00:20]} 64. Kg4 {[%clk 0:00:26]}  gxf5+ {[%clk 0:00:21]} 65. Kxf5 {[%clk 0:00:26]}  hxg5 {[%clk 0:00:20]} 66. hxg5 {[%clk 0:00:25]}  Kg7 {[%clk 0:00:21]} 67. g6 {[%clk 0:00:26]}  Kg8 {[%clk 0:00:21]} 68. Kf6 {[%clk 0:00:27]}  Kf8 {[%clk 0:00:22]} 69. g7+ {[%clk 0:00:28]}  Kg8 {[%clk 0:00:23]} 70. Kg6 {[%clk 0:00:29]} 1/2-1/2


[Site "https://www.chess.com"]

[Event "Titled Tuesday Blitz February 28 Late 2023"]
[White "Martinez Alcantara, Jose Eduardo"]
[Black "Vasquez Schroeder, Rodrigo"]
[WhiteFideId "3805662"]
[BlackFideId "3400042"]
[WhiteElo "2712"]
[BlackElo "2600"]
[Result "1-0"]
[Round "08"]
[TimeControl "180+2"]
[Date "2023.02.28"]
[WhiteClock "0:00:06"]
[BlackClock "0:00:12"]

1. Nf3 {[%clk 0:03:00]}  d5 {[%clk 0:02:59]} 2. g3 {[%clk 0:03:01]}  g6 {[%clk 0:02:58]} 3. c4 {[%clk 0:03:01]}  dxc4 {[%clk 0:02:55]} 4. Qa4+ {[%clk 0:03:01]}  Nc6 {[%clk 0:02:54]} 5. Qxc4 {[%clk 0:03:02]}  Bg7 {[%clk 0:02:55]} 6. Bg2 {[%clk 0:03:02]}  e5 {[%clk 0:02:54]} 7. d3 {[%clk 0:03:03]}  Nge7 {[%clk 0:02:54]} 8. O-O {[%clk 0:03:03]}  Be6 {[%clk 0:02:47]} 9. Qa4 {[%clk 0:03:03]}  h6 {[%clk 0:02:37]} 10. Nc3 {[%clk 0:03:02]}  O-O {[%clk 0:02:36]} 11. Be3 {[%clk 0:03:00]}  Nd5 {[%clk 0:02:33]} 12. Nxd5 {[%clk 0:02:50]}  Bxd5 {[%clk 0:02:33]} 13. Rac1 {[%clk 0:02:51]}  Nd4 {[%clk 0:02:20]} 14. Nxd4 {[%clk 0:02:15]}  Bxg2 {[%clk 0:01:51]} 15. Ne6 {[%clk 0:02:05]}  fxe6 {[%clk 0:01:39]} 16. Kxg2 {[%clk 0:02:04]}  c6 {[%clk 0:01:37]} 17. f3 {[%clk 0:02:00]}  Qd7 {[%clk 0:01:36]} 18. Qb3 {[%clk 0:01:56]}  Qf7 {[%clk 0:01:36]} 19. a4 {[%clk 0:01:54]}  Rfd8 {[%clk 0:01:34]} 20. Rc4 {[%clk 0:01:51]}  Rd5 {[%clk 0:01:33]} 21. Rh4 {[%clk 0:01:51]}  h5 {[%clk 0:01:29]} 22. Rc4 {[%clk 0:01:49]}  a6 {[%clk 0:01:28]} 23. Qc2 {[%clk 0:01:41]}  Rad8 {[%clk 0:01:27]} 24. h3 {[%clk 0:01:39]}  R8d7 {[%clk 0:01:15]} 25. g4 {[%clk 0:01:39]}  Kh7 {[%clk 0:01:10]} 26. Qc1 {[%clk 0:01:32]}  Rd8 {[%clk 0:01:06]} 27. Kh1 {[%clk 0:01:30]}  Rf8 {[%clk 0:01:04]} 28. Rg1 {[%clk 0:01:29]}  Rg8 {[%clk 0:01:01]} 29. Qe1 {[%clk 0:01:18]}  Bf6 {[%clk 0:01:01]} 30. Qg3 {[%clk 0:01:15]}  Bd8 {[%clk 0:00:57]} 31. Re4 {[%clk 0:01:12]}  Bf6 {[%clk 0:00:56]} 32. Rc4 {[%clk 0:01:02]}  Be7 {[%clk 0:00:52]} 33. Rg2 {[%clk 0:01:02]}  h4 {[%clk 0:00:44]} 34. Qe1 {[%clk 0:00:58]}  g5 {[%clk 0:00:45]} 35. Qc1 {[%clk 0:00:54]}  Bf6 {[%clk 0:00:45]} 36. Rg1 {[%clk 0:00:55]}  Qg6 {[%clk 0:00:44]} 37. Qc2 {[%clk 0:00:55]}  Rgd8 {[%clk 0:00:44]} 38. Kg2 {[%clk 0:00:54]}  R8d7 {[%clk 0:00:44]} 39. Rc1 {[%clk 0:00:55]}  Kg7 {[%clk 0:00:44]} 40. Ra1 {[%clk 0:00:55]}  Be7 {[%clk 0:00:40]} 41. Re4 {[%clk 0:00:53]}  Bf6 {[%clk 0:00:39]} 42. Ra3 {[%clk 0:00:52]}  Qe8 {[%clk 0:00:39]} 43. Rc3 {[%clk 0:00:51]}  Qe7 {[%clk 0:00:39]} 44. Bc5 {[%clk 0:00:49]}  Qf7 {[%clk 0:00:39]} 45. Be3 {[%clk 0:00:50]}  Qe7 {[%clk 0:00:37]} 46. Qc1 {[%clk 0:00:50]}  Kg6 {[%clk 0:00:37]} 47. b4 {[%clk 0:00:47]}  Qd8 {[%clk 0:00:36]} 48. Rb3 {[%clk 0:00:47]}  Be7 {[%clk 0:00:35]} 49. Qc2 {[%clk 0:00:47]}  Kg7 {[%clk 0:00:35]} 50. Bd2 {[%clk 0:00:45]}  Bf6 {[%clk 0:00:33]} 51. Bc3 {[%clk 0:00:44]}  Qc7 {[%clk 0:00:31]} 52. Bb2 {[%clk 0:00:44]}  b5 {[%clk 0:00:31]} 53. Rc3 {[%clk 0:00:41]}  R7d6 {[%clk 0:00:31]} 54. axb5 {[%clk 0:00:40]}  axb5 {[%clk 0:00:30]} 55. Ra3 {[%clk 0:00:41]}  Qb7 {[%clk 0:00:26]} 56. Bc1 {[%clk 0:00:37]}  Bd8 {[%clk 0:00:21]} 57. Be3 {[%clk 0:00:37]}  Rd7 {[%clk 0:00:18]} 58. Qc3 {[%clk 0:00:35]}  Qb8 {[%clk 0:00:16]} 59. Qxc6 {[%clk 0:00:31]}  R5d6 {[%clk 0:00:15]} 60. Qc5 {[%clk 0:00:27]}  Rd5 {[%clk 0:00:15]} 61. Qc6 {[%clk 0:00:26]}  R5d6 {[%clk 0:00:15]} 62. Qc1 {[%clk 0:00:27]}  Kg6 {[%clk 0:00:15]} 63. Rxe5 {[%clk 0:00:23]}  Ra6 {[%clk 0:00:14]} 64. Rxa6 {[%clk 0:00:08]}  Qxe5 {[%clk 0:00:15]} 65. Bf2 {[%clk 0:00:08]}  Bc7 {[%clk 0:00:14]} 66. Kf1 {[%clk 0:00:07]}  Qh2 {[%clk 0:00:14]} 67. Rxe6+ {[%clk 0:00:04]}  Kf7 {[%clk 0:00:13]} 68. Qc6 {[%clk 0:00:05]}  Qxh3+ {[%clk 0:00:12]} 69. Ke1 {[%clk 0:00:05]}  Bf4 {[%clk 0:00:12]} 70. Qxd7+ {[%clk 0:00:05]}  Kg8 {[%clk 0:00:12]} 71. Re8# {[%clk 0:00:06]} 1-0


[Site "https://www.chess.com"]

[Event "Titled Tuesday Blitz February 28 Late 2023"]
[White "Grischuk, Alexander"]
[Black "Rozman, Levy"]
[WhiteFideId "4126025"]
[BlackFideId "2039877"]
[WhiteElo "2727"]
[BlackElo "2376"]
[Result "1-0"]
[Round "08"]
[TimeControl "180+2"]
[Date "2023.02.28"]
[WhiteClock "0:00:40"]
[BlackClock "0:00:01"]

1. e4 {[%clk 0:03:00]}  e6 {[%clk 0:02:58]} 2. Nc3 {[%clk 0:03:00]}  d5 {[%clk 0:02:58]} 3. d4 {[%clk 0:03:01]}  dxe4 {[%clk 0:02:58]} 4. Nxe4 {[%clk 0:03:02]}  Nf6 {[%clk 0:02:58]} 5. Nxf6+ {[%clk 0:03:01]}  gxf6 {[%clk 0:02:59]} 6. Nf3 {[%clk 0:03:02]}  Nc6 {[%clk 0:02:59]} 7. Bc4 {[%clk 0:02:55]}  b6 {[%clk 0:02:56]} 8. O-O {[%clk 0:02:51]}  Bb7 {[%clk 0:02:47]} 9. Re1 {[%clk 0:02:46]}  Ne7 {[%clk 0:02:43]} 10. a4 {[%clk 0:02:42]}  a6 {[%clk 0:02:42]} 11. Bf1 {[%clk 0:02:36]}  Rg8 {[%clk 0:02:36]} 12. c4 {[%clk 0:02:35]}  Qd6 {[%clk 0:02:10]} 13. a5 {[%clk 0:02:33]}  Nf5 {[%clk 0:01:51]} 14. axb6 {[%clk 0:02:28]}  cxb6 {[%clk 0:01:50]} 15. d5 {[%clk 0:02:25]}  O-O-O {[%clk 0:01:43]} 16. Qc2 {[%clk 0:02:23]}  Qc7 {[%clk 0:01:31]} 17. Bd3 {[%clk 0:02:05]}  Kb8 {[%clk 0:01:10]} 18. Bxf5 {[%clk 0:02:02]}  exf5 {[%clk 0:01:08]} 19. Qd3 {[%clk 0:01:47]}  Bb4 {[%clk 0:00:54]} 20. Bd2 {[%clk 0:01:43]}  Bxd2 {[%clk 0:00:51]} 21. Nxd2 {[%clk 0:01:44]}  b5 {[%clk 0:00:39]} 22. b3 {[%clk 0:01:44]}  Qf4 {[%clk 0:00:20]} 23. Re3 {[%clk 0:01:36]}  Qg5 {[%clk 0:00:13]} 24. Rg3 {[%clk 0:01:36]}  Qf4 {[%clk 0:00:13]} 25. Re1 {[%clk 0:01:33]}  h5 {[%clk 0:00:11]} 26. Qe3 {[%clk 0:01:14]}  Qd6 {[%clk 0:00:08]} 27. Qe7 {[%clk 0:01:09]}  Qf4 {[%clk 0:00:02]} 28. Qe3 {[%clk 0:00:52]}  Qd6 {[%clk 0:00:02]} 29. Rf3 {[%clk 0:00:52]}  Rge8 {[%clk 0:00:01]} 30. Qxe8 {[%clk 0:00:51]}  Rxe8 {[%clk 0:00:01]} 31. Rxe8+ {[%clk 0:00:52]}  Ka7 {[%clk 0:00:02]} 32. h3 {[%clk 0:00:46]}  Qb4 {[%clk 0:00:02]} 33. Rd3 {[%clk 0:00:43]}  a5 {[%clk 0:00:02]} 34. d6 {[%clk 0:00:40]}  Bc6 {[%clk 0:00:02]} 35. d7 {[%clk 0:00:40]}  Bxd7 {[%clk 0:00:01]} 36. Rxd7+ {[%clk 0:00:41]}  Kb6 {[%clk 0:00:02]} 37. Rb8+ {[%clk 0:00:39]}  Kc5 {[%clk 0:00:01]} 38. Rxb5+ {[%clk 0:00:40]} 1-0


[Site "https://www.chess.com"]